[Event "Late-Titled-Tuesday-Blitz-January-23-2024"]
[Site "Chess.com"]
[Date "2024.01.23"]
[Round "2"]
[White "subham777"]
[Black "baag"]
[Result "0-1"]
[WhiteElo "2553"]
[BlackElo "2854"]
[TimeControl "180+1"]
[EndTime "14:17:20 PST"]
[Termination "baag won on time"]

1. e4 {[%clk 0:03:00.9]} 1... c6 {[%clk 0:02:59.8]} 2. c4 {[%clk 0:03:00.5]}
2... d5 {[%clk 0:03:00.5]} 3. cxd5 {[%clk 0:03:00.8]} 3... cxd5 {[%clk
0:03:01.3]} 4. exd5 {[%clk 0:03:01.4]} 4... Nf6 {[%clk 0:03:02.1]} 5. Nf3 {[%clk
0:03:01.7]} 5... Nxd5 {[%clk 0:03:01.4]} 6. Nc3 {[%clk 0:03:02.3]} 6... Nb6
{[%clk 0:02:58]} 7. d4 {[%clk 0:03:01.6]} 7... g6 {[%clk 0:02:58.6]} 8. Bb5+
{[%clk 0:02:54.6]} 8... Bd7 {[%clk 0:02:55.9]} 9. Bd3 {[%clk 0:02:44.2]} 9...
Bg7 {[%clk 0:02:49.9]} 10. O-O {[%clk 0:02:42.5]} 10... O-O {[%clk 0:02:49.3]}
11. Re1 {[%clk 0:02:40.5]} 11... Bg4 {[%clk 0:02:45.8]} 12. Be3 {[%clk
0:02:37.1]} 12... Nc6 {[%clk 0:02:45.1]} 13. Be4 {[%clk 0:02:24.9]} 13... Nc4
{[%clk 0:02:42.8]} 14. h3 {[%clk 0:02:12.2]} 14... Bxf3 {[%clk 0:02:41.3]} 15.
Qxf3 {[%clk 0:02:05.9]} 15... Rc8 {[%clk 0:02:40.4]} 16. Bxc6 {[%clk 0:02:03]}
16... Rxc6 {[%clk 0:02:37.8]} 17. Rab1 {[%clk 0:01:49.1]} 17... Qa5 {[%clk
0:02:07.7]} 18. Nd5 {[%clk 0:01:30.2]} 18... Re6 {[%clk 0:01:47]} 19. Nf4 {[%clk
0:00:51.7]} 19... Rd6 {[%clk 0:01:36.1]} 20. Qxb7 {[%clk 0:00:42.2]} 20... Bxd4
{[%clk 0:01:33.3]} 21. Qxe7 {[%clk 0:00:31.9]} 21... Bxe3 {[%clk 0:01:13.4]} 22.
fxe3 {[%clk 0:00:29.9]} 22... Rd2 {[%clk 0:01:13.3]} 23. Qe4 {[%clk 0:00:10.3]}
23... Nxb2 {[%clk 0:00:55.6]} 24. Kh1 {[%clk 0:00:06.4]} 24... Qxa2 {[%clk
0:00:47.5]} 25. Rf1 {[%clk 0:00:02.9]} 25... Qc4 {[%clk 0:00:46]} 26. Qxc4
{[%clk 0:00:02.5]} 26... Nxc4 {[%clk 0:00:46.9]} 27. Rb7 {[%clk 0:00:02.6]}
27... Nxe3 {[%clk 0:00:47]} 28. Re1 {[%clk 0:00:02.2]} 28... Nf5 {[%clk
0:00:36.8]} 29. Rxa7 {[%clk 0:00:01.6]} 29... Rc8 {[%clk 0:00:36.9]} 30. Kg1
{[%clk 0:00:02.2]} 30... h5 {[%clk 0:00:36.7]} 31. Rb1 {[%clk 0:00:01.3]} 31...
h4 {[%clk 0:00:32.7]} 32. Rbb7 {[%clk 0:00:01.9]} 32... Rc1+ {[%clk 0:00:28.4]}
33. Kh2 {[%clk 0:00:02.5]} 33... Ng3 {[%clk 0:00:28.8]} 34. Rb8+ {[%clk
0:00:01.2]} 34... Kg7 {[%clk 0:00:28.7]} 35. Ne6+ {[%clk 0:00:02]} 35... Kf6
{[%clk 0:00:29.3]} 0-1

[Event "Late-Titled-Tuesday-Blitz-January-23-2024"]
[Site "Chess.com"]
[Date "2024.01.23"]
[Round "2"]
[White "Cubitas"]
[Black "underthebridge1999"]
[Result "1-0"]
[WhiteElo "2731"]
[BlackElo "2360"]
[TimeControl "180+1"]
[EndTime "14:17:22 PST"]
[Termination "Cubitas won by resignation"]

1. e4 {[%clk 0:03:00.9]} 1... c5 {[%clk 0:02:58.5]} 2. Nc3 {[%clk 0:03:00.1]}
2... Nc6 {[%clk 0:02:58.5]} 3. f4 {[%clk 0:03:00.1]} 3... g6 {[%clk 0:02:58.5]}
4. Nf3 {[%clk 0:03:00.5]} 4... Bg7 {[%clk 0:02:59]} 5. Bb5 {[%clk 0:03:00.5]}
5... Nd4 {[%clk 0:02:58.2]} 6. O-O {[%clk 0:03:00.6]} 6... a6 {[%clk 0:02:57.4]}
7. Bd3 {[%clk 0:02:57.2]} 7... d6 {[%clk 0:02:47.9]} 8. Nxd4 {[%clk 0:02:56.9]}
8... cxd4 {[%clk 0:02:48.2]} 9. Ne2 {[%clk 0:02:57.4]} 9... Nf6 {[%clk
0:02:44.2]} 10. Kh1 {[%clk 0:02:50.9]} 10... e5 {[%clk 0:02:44.4]} 11. c3 {[%clk
0:02:49.6]} 11... Nd7 {[%clk 0:02:33]} 12. cxd4 {[%clk 0:02:39.7]} 12... exd4
{[%clk 0:02:33.9]} 13. b4 {[%clk 0:02:39.4]} 13... O-O {[%clk 0:02:31.4]} 14.
Bb2 {[%clk 0:02:38.1]} 14... Qb6 {[%clk 0:02:31.2]} 15. Qb3 {[%clk 0:02:34.3]}
15... a5 {[%clk 0:02:22.3]} 16. bxa5 {[%clk 0:02:31.3]} 16... Qxb3 {[%clk
0:02:21.8]} 17. axb3 {[%clk 0:02:31.4]} 17... Nc5 {[%clk 0:02:22.4]} 18. Bc4
{[%clk 0:02:19.2]} 18... Nxe4 {[%clk 0:02:01.6]} 19. Bd5 {[%clk 0:01:42.2]}
19... Re8 {[%clk 0:00:33.7]} 20. Bxd4 {[%clk 0:01:17.3]} 20... Nxd2 {[%clk
0:00:30.4]} 21. Rfe1 {[%clk 0:01:14.4]} 21... Rxe2 {[%clk 0:00:10.5]} 22. Rxe2
{[%clk 0:01:09.2]} 22... Bxd4 {[%clk 0:00:10.6]} 23. Re8+ {[%clk 0:01:06.4]}
23... Kg7 {[%clk 0:00:10.3]} 24. Rc1 {[%clk 0:01:06.2]} 24... Rxa5 {[%clk
0:00:08.4]} 25. Bxf7 {[%clk 0:00:59.2]} 25... Kxf7 {[%clk 0:00:08.1]} 26. Rexc8
{[%clk 0:00:58.1]} 26... Ne4 {[%clk 0:00:08.2]} 27. h3 {[%clk 0:00:51.1]} 27...
Ng3+ {[%clk 0:00:05.9]} 28. Kh2 {[%clk 0:00:50.9]} 28... Ne2 {[%clk 0:00:06.8]}
29. R1c7+ {[%clk 0:00:49.8]} 29... Ke6 {[%clk 0:00:05.9]} 30. Re8+ {[%clk
0:00:50]} 30... Kd5 {[%clk 0:00:06.2]} 31. Rxe2 {[%clk 0:00:50.5]} 31... Ra1
{[%clk 0:00:06.1]} 32. Rd2 {[%clk 0:00:46.6]} 32... Ke4 {[%clk 0:00:04.7]} 33.
Rc4 {[%clk 0:00:45.4]} 33... Ke3 {[%clk 0:00:04.1]} 34. Rcxd4 {[%clk 0:00:44.8]}
34... Rb1 {[%clk 0:00:05]} 35. b4 {[%clk 0:00:43.8]} 35... Rb3 {[%clk
0:00:04.6]} 36. Kg3 {[%clk 0:00:42.4]} 36... h5 {[%clk 0:00:05]} 37. Kh4 {[%clk
0:00:42.3]} 37... Rb1 {[%clk 0:00:04.9]} 38. Kg5 {[%clk 0:00:42]} 38... Rg1
{[%clk 0:00:05.6]} 39. Kxg6 {[%clk 0:00:41.9]} 1-0

[Event "Late-Titled-Tuesday-Blitz-January-23-2024"]
[Site "Chess.com"]
[Date "2024.01.23"]
[Round "2"]
[White "DanylaBagrov"]
[Black "smotherhubbard"]
[Result "0-1"]
[WhiteElo "2520"]
[BlackElo "2335"]
[TimeControl "180+1"]
[EndTime "14:17:23 PST"]
[Termination "smotherhubbard won by resignation"]

1. d4 {[%clk 0:02:22]} 1... Nf6 {[%clk 0:02:58.4]} 2. c4 {[%clk 0:02:21.9]} 2...
e6 {[%clk 0:02:58.3]} 3. Bf4 {[%clk 0:02:22.2]} 3... c5 {[%clk 0:02:49.5]} 4. d5
{[%clk 0:02:22.1]} 4... b5 {[%clk 0:02:41.4]} 5. e4 {[%clk 0:02:09.1]} 5... Nxe4
{[%clk 0:02:31.9]} 6. Nf3 {[%clk 0:02:06.5]} 6... bxc4 {[%clk 0:02:10.6]} 7.
Bxc4 {[%clk 0:01:56.8]} 7... Bd6 {[%clk 0:02:08]} 8. dxe6 {[%clk 0:01:40.8]}
8... dxe6 {[%clk 0:01:50.4]} 9. Bb5+ {[%clk 0:01:31.9]} 9... Bd7 {[%clk
0:01:39.9]} 10. Qa4 {[%clk 0:01:02.2]} 10... Bxb5 {[%clk 0:01:11.4]} 11. Qxb5+
{[%clk 0:00:55.1]} 11... Qd7 {[%clk 0:01:10.9]} 12. Qc4 {[%clk 0:00:50.8]} 12...
Nf6 {[%clk 0:00:59.4]} 13. O-O {[%clk 0:00:44]} 13... Bxf4 {[%clk 0:00:58.7]}
14. Qxf4 {[%clk 0:00:44.9]} 14... O-O {[%clk 0:00:58]} 15. Nc3 {[%clk
0:00:41.9]} 15... Nc6 {[%clk 0:00:56.4]} 16. Rfd1 {[%clk 0:00:40.8]} 16... Qb7
{[%clk 0:00:56.3]} 17. b3 {[%clk 0:00:35.4]} 17... Rac8 {[%clk 0:00:56.3]} 18.
Rac1 {[%clk 0:00:34.6]} 18... Nb4 {[%clk 0:00:56.4]} 19. Rd2 {[%clk 0:00:30.6]}
19... Rfd8 {[%clk 0:00:55.8]} 20. Rcd1 {[%clk 0:00:28.2]} 20... Qe7 {[%clk
0:00:55.7]} 21. Ne5 {[%clk 0:00:24.5]} 21... Nbd5 {[%clk 0:00:48.7]} 22. Nxd5
{[%clk 0:00:22.4]} 22... Rxd5 {[%clk 0:00:49.6]} 23. Nc4 {[%clk 0:00:20.4]}
23... Rcd8 {[%clk 0:00:46.4]} 24. h3 {[%clk 0:00:20.1]} 24... h6 {[%clk
0:00:44.3]} 25. Qe3 {[%clk 0:00:18.5]} 25... Rxd2 {[%clk 0:00:41]} 26. Rxd2
{[%clk 0:00:19.4]} 26... Rxd2 {[%clk 0:00:40.4]} 27. Qxd2 {[%clk 0:00:20.1]}
27... Qd7 {[%clk 0:00:40.1]} 28. Qe3 {[%clk 0:00:19.9]} 28... Qd4 {[%clk
0:00:39.7]} 29. Qe1 {[%clk 0:00:16]} 29... Ne4 {[%clk 0:00:38]} 30. Ne3 {[%clk
0:00:16.7]} 30... Qd2 {[%clk 0:00:36.1]} 31. Qf1 {[%clk 0:00:11.7]} 31... Qxa2
{[%clk 0:00:35.6]} 32. f3 {[%clk 0:00:10.3]} 32... Qxb3 {[%clk 0:00:34]} 33. Qe1
{[%clk 0:00:10]} 33... Qc3 {[%clk 0:00:32.4]} 34. Qe2 {[%clk 0:00:10.3]} 34...
Qd2 {[%clk 0:00:32]} 35. Kf1 {[%clk 0:00:07.8]} 35... Ng3+ {[%clk 0:00:30.6]}
36. Kf2 {[%clk 0:00:08.1]} 36... Qxe2+ {[%clk 0:00:30.2]} 37. Kxg3 {[%clk
0:00:08.6]} 37... Qxe3 {[%clk 0:00:31.1]} 0-1

[Event "Late-Titled-Tuesday-Blitz-January-23-2024"]
[Site "Chess.com"]
[Date "2024.01.23"]
[Round "2"]
[White "GMJustin"]
[Black "masnyszachistaaa"]
[Result "0-1"]
[WhiteElo "2340"]
[BlackElo "2539"]
[TimeControl "180+1"]
[EndTime "14:17:27 PST"]
[Termination "masnyszachistaaa won on time"]

1. d4 {[%clk 0:02:32.2]} 1... Nf6 {[%clk 0:02:56.5]} 2. c4 {[%clk 0:02:31.1]}
2... c5 {[%clk 0:02:46.9]} 3. d5 {[%clk 0:02:29.5]} 3... b5 {[%clk 0:02:46.4]}
4. f3 {[%clk 0:02:15.7]} 4... bxc4 {[%clk 0:02:00]} 5. e4 {[%clk 0:02:15.3]}
5... d6 {[%clk 0:02:00.2]} 6. Bxc4 {[%clk 0:02:13.7]} 6... g6 {[%clk 0:02:00.7]}
7. Ne2 {[%clk 0:02:05.6]} 7... Bg7 {[%clk 0:02:00.3]} 8. O-O {[%clk 0:02:03.4]}
8... O-O {[%clk 0:02:00.1]} 9. Nec3 {[%clk 0:01:57.8]} 9... a5 {[%clk
0:01:49.7]} 10. a4 {[%clk 0:01:53.8]} 10... Na6 {[%clk 0:01:47.1]} 11. Na3
{[%clk 0:01:49.1]} 11... Nb4 {[%clk 0:01:45.2]} 12. Be3 {[%clk 0:01:40.6]} 12...
Nd7 {[%clk 0:01:43.1]} 13. Qd2 {[%clk 0:01:34.4]} 13... Re8 {[%clk 0:01:21.3]}
14. Nab5 {[%clk 0:01:32]} 14... Nb6 {[%clk 0:01:14.8]} 15. Be2 {[%clk
0:01:30.2]} 15... Ba6 {[%clk 0:01:00.8]} 16. Rad1 {[%clk 0:01:25.1]} 16... Qd7
{[%clk 0:00:58.1]} 17. b3 {[%clk 0:01:18.3]} 17... Rad8 {[%clk 0:00:57.2]} 18.
Bh6 {[%clk 0:01:13.2]} 18... Bh8 {[%clk 0:00:56.8]} 19. h4 {[%clk 0:01:10.7]}
19... e6 {[%clk 0:00:52.4]} 20. Bg5 {[%clk 0:00:57]} 20... f6 {[%clk 0:00:44.6]}
21. dxe6 {[%clk 0:00:55.3]} 21... Qxe6 {[%clk 0:00:45.5]} 22. Nc7 {[%clk
0:00:52.9]} 22... Qxb3 {[%clk 0:00:43.6]} 23. Bxa6 {[%clk 0:00:26.2]} 23... fxg5
{[%clk 0:00:43.6]} 24. Nxe8 {[%clk 0:00:02.4]} 24... Bxc3 {[%clk 0:00:34]} 25.
Qxg5 {[%clk 0:00:02.4]} 25... Rxe8 {[%clk 0:00:34.6]} 26. Rxd6 {[%clk
0:00:01.7]} 26... Nxa6 {[%clk 0:00:31.8]} 27. h5 {[%clk 0:00:01.7]} 27... Bd4+
{[%clk 0:00:22.5]} 28. Kh1 {[%clk 0:00:01.3]} 28... Re6 {[%clk 0:00:16.9]} 0-1

[Event "Late-Titled-Tuesday-Blitz-January-23-2024"]
[Site "Chess.com"]
[Date "2024.01.23"]
[Round "2"]
[White "ContrVersia"]
[Black "Lady_Nika"]
[Result "1-0"]
[WhiteElo "2859"]
[BlackElo "2558"]
[TimeControl "180+1"]
[EndTime "14:17:37 PST"]
[Termination "ContrVersia won by checkmate"]

1. c4 {[%clk 0:03:00.9]} 1... e6 {[%clk 0:02:58.5]} 2. Nf3 {[%clk 0:03:00.2]}
2... d5 {[%clk 0:02:58.7]} 3. b3 {[%clk 0:03:00.7]} 3... f5 {[%clk 0:02:58.2]}
4. Bb2 {[%clk 0:03:00.3]} 4... Nf6 {[%clk 0:02:58.6]} 5. g3 {[%clk 0:03:00.8]}
5... c6 {[%clk 0:02:58.3]} 6. Bg2 {[%clk 0:03:01]} 6... Bd6 {[%clk 0:02:58.7]}
7. O-O {[%clk 0:03:01.1]} 7... Nbd7 {[%clk 0:02:58.2]} 8. d3 {[%clk 0:02:59.4]}
8... O-O {[%clk 0:02:58.1]} 9. Nc3 {[%clk 0:02:59.4]} 9... f4 {[%clk 0:02:51]}
10. Qd2 {[%clk 0:02:52.6]} 10... e5 {[%clk 0:02:47.7]} 11. cxd5 {[%clk
0:02:52.4]} 11... cxd5 {[%clk 0:02:47.4]} 12. Nb5 {[%clk 0:02:33.3]} 12... Bb8
{[%clk 0:02:30]} 13. Ba3 {[%clk 0:02:32.8]} 13... Re8 {[%clk 0:02:27.8]} 14. Nd6
{[%clk 0:02:32.6]} 14... Bxd6 {[%clk 0:02:24.6]} 15. Bxd6 {[%clk 0:02:33.5]}
15... Qb6 {[%clk 0:02:10.2]} 16. Ba3 {[%clk 0:02:28.2]} 16... e4 {[%clk
0:01:56.3]} 17. dxe4 {[%clk 0:02:28.4]} 17... dxe4 {[%clk 0:01:55.6]} 18. Nd4
{[%clk 0:02:27.1]} 18... e3 {[%clk 0:01:53.9]} 19. fxe3 {[%clk 0:02:27.2]} 19...
fxe3 {[%clk 0:01:53.8]} 20. Qc3 {[%clk 0:02:21.4]} 20... Ne5 {[%clk 0:01:46.2]}
21. Bc5 {[%clk 0:02:17.5]} 21... Qa6 {[%clk 0:01:42.9]} 22. Nf5 {[%clk
0:01:44.8]} 22... Bxf5 {[%clk 0:01:39.8]} 23. Rxf5 {[%clk 0:01:44.1]} 23... Ned7
{[%clk 0:01:37.4]} 24. Bd4 {[%clk 0:01:37.5]} 24... Rac8 {[%clk 0:01:32.5]} 25.
Qe1 {[%clk 0:01:25.6]} 25... Rc7 {[%clk 0:01:17.7]} 26. a4 {[%clk 0:01:19.9]}
26... Rc2 {[%clk 0:01:08.6]} 27. Bf3 {[%clk 0:01:18.8]} 27... Qd6 {[%clk
0:00:59.3]} 28. Rd1 {[%clk 0:01:16.4]} 28... Qe6 {[%clk 0:00:58.9]} 29. Rf4
{[%clk 0:01:02.3]} 29... Qxb3 {[%clk 0:00:43.5]} 30. Bxf6 {[%clk 0:01:02.2]}
30... Rd2 {[%clk 0:00:21.8]} 31. Rb1 {[%clk 0:00:50.8]} 31... Qxb1 {[%clk
0:00:07.5]} 32. Qxb1 {[%clk 0:00:50.1]} 32... Nxf6 {[%clk 0:00:07.8]} 33. Qxb7
{[%clk 0:00:44.9]} 33... Red8 {[%clk 0:00:06.5]} 34. Qxa7 {[%clk 0:00:42.7]}
34... Rd1+ {[%clk 0:00:06.1]} 35. Kg2 {[%clk 0:00:43]} 35... Re8 {[%clk
0:00:05.8]} 36. g4 {[%clk 0:00:41]} 36... Ra1 {[%clk 0:00:04.4]} 37. g5 {[%clk
0:00:39.6]} 37... Rd8 {[%clk 0:00:02.6]} 38. gxf6 {[%clk 0:00:37.3]} 38... gxf6
{[%clk 0:00:02.8]} 39. Rg4+ {[%clk 0:00:36.6]} 39... Kf8 {[%clk 0:00:03.1]} 40.
Qg7+ {[%clk 0:00:36.2]} 40... Ke8 {[%clk 0:00:03.6]} 41. Re4# {[%clk 0:00:36.2]}
1-0

[Event "Late-Titled-Tuesday-Blitz-January-23-2024"]
[Site "Chess.com"]
[Date "2024.01.23"]
[Round "2"]
[White "ClayK1ng"]
[Black "FoggyMorning"]
[Result "1/2-1/2"]
[WhiteElo "2261"]
[BlackElo "2500"]
[TimeControl "180+1"]
[EndTime "14:17:38 PST"]
[Termination "Game drawn by agreement"]

1. e4 {[%clk 0:02:56.4]} 1... e6 {[%clk 0:02:57.6]} 2. d4 {[%clk 0:02:53.9]}
2... d5 {[%clk 0:02:58.1]} 3. Nc3 {[%clk 0:02:54.4]} 3... Bb4 {[%clk 0:02:54.6]}
4. exd5 {[%clk 0:02:54.2]} 4... exd5 {[%clk 0:02:54.8]} 5. Bd3 {[%clk
0:02:54.9]} 5... Nc6 {[%clk 0:02:54.4]} 6. Nf3 {[%clk 0:02:53.6]} 6... Nge7
{[%clk 0:02:50.1]} 7. O-O {[%clk 0:02:53.1]} 7... Bg4 {[%clk 0:02:47.9]} 8. Be3
{[%clk 0:02:44.5]} 8... Nf5 {[%clk 0:02:08.4]} 9. a3 {[%clk 0:02:34.8]} 9...
Bxc3 {[%clk 0:01:55.3]} 10. bxc3 {[%clk 0:02:34.3]} 10... Nh4 {[%clk 0:01:49.6]}
11. Be2 {[%clk 0:02:32.2]} 11... Nxf3+ {[%clk 0:01:48.7]} 12. Bxf3 {[%clk
0:02:33.1]} 12... Bxf3 {[%clk 0:01:49.1]} 13. Qxf3 {[%clk 0:02:34]} 13... O-O
{[%clk 0:01:49]} 14. Rab1 {[%clk 0:02:26.3]} 14... Na5 {[%clk 0:01:40.4]} 15.
Qg4 {[%clk 0:01:57.6]} 15... b6 {[%clk 0:01:30.1]} 16. h4 {[%clk 0:01:54.8]}
16... Nc4 {[%clk 0:01:24]} 17. h5 {[%clk 0:01:52.1]} 17... Qc8 {[%clk
0:01:10.1]} 18. Qf3 {[%clk 0:01:46]} 18... Qe6 {[%clk 0:00:56.8]} 19. h6 {[%clk
0:01:42.4]} 19... Nxe3 {[%clk 0:00:04.9]} 20. hxg7 {[%clk 0:01:38.6]} 20... Rfe8
{[%clk 0:00:05.3]} 21. fxe3 {[%clk 0:01:37.9]} 21... Qxe3+ {[%clk 0:00:05]} 22.
Qxe3 {[%clk 0:01:33.5]} 22... Rxe3 {[%clk 0:00:05.9]} 23. Rf5 {[%clk 0:01:29.7]}
23... Rd8 {[%clk 0:00:05.2]} 24. Rb3 {[%clk 0:01:26.7]} 24... c6 {[%clk
0:00:03.3]} 25. Rf6 {[%clk 0:01:26.1]} 25... Rc8 {[%clk 0:00:03.6]} 26. Kf2
{[%clk 0:01:26.2]} 26... Re6 {[%clk 0:00:02.6]} 27. Rf3 {[%clk 0:01:23.2]} 27...
Kxg7 {[%clk 0:00:03.2]} 28. a4 {[%clk 0:01:24.1]} 28... Rf6 {[%clk 0:00:02.3]}
29. a5 {[%clk 0:01:22.7]} 29... b5 {[%clk 0:00:01.9]} 30. Rb1 {[%clk 0:01:15.4]}
30... a6 {[%clk 0:00:01.8]} 31. Re1 {[%clk 0:01:15.1]} 31... c5 {[%clk
0:00:01.8]} 32. Re2 {[%clk 0:01:06.3]} 32... cxd4 {[%clk 0:00:01.7]} 33. cxd4
{[%clk 0:01:07.2]} 33... Rxf3+ {[%clk 0:00:01.7]} 34. Kxf3 {[%clk 0:01:08.1]}
34... Rc4 {[%clk 0:00:02.1]} 35. Rd2 {[%clk 0:01:04.6]} 35... Rc3+ {[%clk
0:00:02.3]} 36. Kf4 {[%clk 0:01:04.8]} 36... Ra3 {[%clk 0:00:02.3]} 37. Ke5
{[%clk 0:01:05.4]} 37... Rxa5 {[%clk 0:00:02.6]} 38. Kxd5 {[%clk 0:01:06.1]}
38... Ra3 {[%clk 0:00:03]} 39. Kc5 {[%clk 0:01:04.8]} 39... Rc3+ {[%clk
0:00:01.9]} 40. Kb6 {[%clk 0:01:05]} 40... b4 {[%clk 0:00:01.8]} 41. d5 {[%clk
0:01:02.5]} 41... b3 {[%clk 0:00:02.2]} 42. cxb3 {[%clk 0:01:02.2]} 42... Rxb3+
{[%clk 0:00:03.1]} 43. Kxa6 {[%clk 0:01:02.7]} 43... Kf8 {[%clk 0:00:03.5]} 44.
d6 {[%clk 0:01:01.9]} 44... Ke8 {[%clk 0:00:04.1]} 45. Ka5 {[%clk 0:01:00.7]}
45... Kd7 {[%clk 0:00:04.4]} 46. Rf2 {[%clk 0:00:58.8]} 46... Kxd6 {[%clk
0:00:03.2]} 47. Rxf7 {[%clk 0:00:58.9]} 47... h5 {[%clk 0:00:02.5]} 48. Rh7
{[%clk 0:00:58.9]} 48... Ra3+ {[%clk 0:00:02.1]} 49. Kb4 {[%clk 0:00:59.1]}
49... Rg3 {[%clk 0:00:02.4]} 50. Rxh5 {[%clk 0:00:58.9]} 50... Rxg2 {[%clk
0:00:03]} 51. Rh6+ {[%clk 0:00:59.5]} 51... Ke5 {[%clk 0:00:03.1]} 52. Rh4
{[%clk 0:01:00.4]} 52... Kf5 {[%clk 0:00:03.2]} 53. Rc4 {[%clk 0:01:01.3]} 53...
Ke5 {[%clk 0:00:03.7]} 54. Rc5+ {[%clk 0:01:02.2]} 54... Kd4 {[%clk 0:00:04.1]}
55. Rc4+ {[%clk 0:01:02.6]} 55... Kd3 {[%clk 0:00:04.8]} 56. Rc3+ {[%clk
0:01:03.1]} 56... Kd2 {[%clk 0:00:05.5]} 1/2-1/2

[Event "Late-Titled-Tuesday-Blitz-January-23-2024"]
[Site "Chess.com"]
[Date "2024.01.23"]
[Round "2"]
[White "Hananmo"]
[Black "HanSchut"]
[Result "1-0"]
[WhiteElo "2504"]
[BlackElo "2250"]
[TimeControl "180+1"]
[EndTime "14:17:38 PST"]
[Termination "Hananmo won on time"]

1. e4 {[%clk 0:03:00.9]} 1... c5 {[%clk 0:02:59.3]} 2. Nf3 {[%clk 0:02:59.2]}
2... d6 {[%clk 0:02:59.4]} 3. d4 {[%clk 0:02:57.9]} 3... cxd4 {[%clk 0:03:00.3]}
4. Nxd4 {[%clk 0:02:58.8]} 4... Nf6 {[%clk 0:03:00.9]} 5. Nc3 {[%clk 0:02:58.8]}
5... a6 {[%clk 0:03:01.2]} 6. Be2 {[%clk 0:02:58.7]} 6... e5 {[%clk 0:03:01.4]}
7. Nb3 {[%clk 0:02:57.8]} 7... Be7 {[%clk 0:03:02.1]} 8. Be3 {[%clk 0:02:55.9]}
8... Be6 {[%clk 0:03:02.3]} 9. O-O {[%clk 0:02:56.1]} 9... Nbd7 {[%clk
0:03:02.6]} 10. h3 {[%clk 0:02:54.4]} 10... O-O {[%clk 0:03:02.6]} 11. Qd2
{[%clk 0:02:54.7]} 11... Qc7 {[%clk 0:03:01.4]} 12. f4 {[%clk 0:02:49.8]} 12...
exf4 {[%clk 0:03:00.4]} 13. Bxf4 {[%clk 0:02:49.9]} 13... Ne5 {[%clk 0:03:01.1]}
14. Nd4 {[%clk 0:02:47.1]} 14... Rac8 {[%clk 0:02:58.2]} 15. Rad1 {[%clk
0:02:35.4]} 15... b5 {[%clk 0:02:58.3]} 16. Bg5 {[%clk 0:02:29.7]} 16... b4
{[%clk 0:02:41.4]} 17. Nd5 {[%clk 0:02:08.3]} 17... Nxd5 {[%clk 0:02:12.6]} 18.
exd5 {[%clk 0:02:04.1]} 18... Bxg5 {[%clk 0:02:07.9]} 19. Qxg5 {[%clk
0:02:02.2]} 19... Bd7 {[%clk 0:01:51]} 20. Kh1 {[%clk 0:01:54.5]} 20... a5
{[%clk 0:01:42.9]} 21. Bd3 {[%clk 0:01:54.3]} 21... Qc5 {[%clk 0:01:23.3]} 22.
Nf5 {[%clk 0:01:20.5]} 22... Bxf5 {[%clk 0:01:00]} 23. Bxf5 {[%clk 0:01:21.4]}
23... Rc7 {[%clk 0:00:49.3]} 24. Qh4 {[%clk 0:01:17.4]} 24... g6 {[%clk
0:00:46.3]} 25. Be4 {[%clk 0:01:16.6]} 25... f5 {[%clk 0:00:45.1]} 26. Bd3
{[%clk 0:00:54.4]} 26... Nxd3 {[%clk 0:00:44.1]} 27. Rxd3 {[%clk 0:00:55.3]}
27... Qxc2 {[%clk 0:00:43.1]} 28. Re3 {[%clk 0:00:55.5]} 28... Qxb2 {[%clk
0:00:38.5]} 29. Re6 {[%clk 0:00:55.6]} 29... Rc1 {[%clk 0:00:28.7]} 30. Rxc1
{[%clk 0:00:51.3]} 30... Qxc1+ {[%clk 0:00:29.6]} 31. Kh2 {[%clk 0:00:51.9]}
31... Qc3 {[%clk 0:00:24.8]} 32. Qe7 {[%clk 0:00:30.2]} 32... f4 {[%clk
0:00:12]} 33. Rxd6 {[%clk 0:00:27.5]} 33... Qg3+ {[%clk 0:00:09.7]} 34. Kh1
{[%clk 0:00:25]} 34... f3 {[%clk 0:00:07.3]} 35. Qe6+ {[%clk 0:00:25.4]} 35...
Kg7 {[%clk 0:00:01.8]} 36. Rd7+ {[%clk 0:00:25.2]} 36... Kh6 {[%clk 0:00:02.3]}
37. Qe3+ {[%clk 0:00:25.6]} 1-0

[Event "Late-Titled-Tuesday-Blitz-January-23-2024"]
[Site "Chess.com"]
[Date "2024.01.23"]
[Round "2"]
[White "wadsy27"]
[Black "Nick12772"]
[Result "1-0"]
[WhiteElo "2654"]
[BlackElo "2341"]
[TimeControl "180+1"]
[EndTime "14:17:41 PST"]
[Termination "wadsy27 won on time"]

1. c4 {[%clk 0:03:00.9]} 1... Nf6 {[%clk 0:03:00]} 2. g3 {[%clk 0:03:00.2]} 2...
c6 {[%clk 0:02:59.8]} 3. Nf3 {[%clk 0:02:58.6]} 3... d5 {[%clk 0:03:00.7]} 4.
Bg2 {[%clk 0:02:58.3]} 4... g6 {[%clk 0:03:00.8]} 5. b3 {[%clk 0:02:58.1]} 5...
Bg7 {[%clk 0:03:01.2]} 6. Bb2 {[%clk 0:02:58.4]} 6... O-O {[%clk 0:03:01.9]} 7.
O-O {[%clk 0:02:56.5]} 7... Bg4 {[%clk 0:03:01.4]} 8. d4 {[%clk 0:02:56]} 8...
Bxf3 {[%clk 0:03:01.2]} 9. Bxf3 {[%clk 0:02:55.5]} 9... Nbd7 {[%clk 0:03:01.7]}
10. Nc3 {[%clk 0:02:55.1]} 10... e6 {[%clk 0:03:02]} 11. Rc1 {[%clk 0:02:54.6]}
11... Rc8 {[%clk 0:03:00.8]} 12. e3 {[%clk 0:02:54.5]} 12... Re8 {[%clk
0:03:01]} 13. Bg2 {[%clk 0:02:51.7]} 13... a6 {[%clk 0:03:01.1]} 14. f4 {[%clk
0:02:45.2]} 14... Bf8 {[%clk 0:02:59.4]} 15. c5 {[%clk 0:02:43.2]} 15... h5
{[%clk 0:02:49.7]} 16. h3 {[%clk 0:02:41.2]} 16... Kg7 {[%clk 0:02:40.3]} 17. b4
{[%clk 0:02:37]} 17... Be7 {[%clk 0:02:39.8]} 18. g4 {[%clk 0:02:21.6]} 18...
hxg4 {[%clk 0:02:39.5]} 19. hxg4 {[%clk 0:02:21.1]} 19... Rh8 {[%clk 0:02:40.2]}
20. g5 {[%clk 0:02:20.3]} 20... Nh5 {[%clk 0:02:35.4]} 21. Qg4 {[%clk
0:02:16.3]} 21... Qc7 {[%clk 0:02:19]} 22. e4 {[%clk 0:02:10]} 22... Rh7 {[%clk
0:02:10.6]} 23. f5 {[%clk 0:01:46.8]} 23... exf5 {[%clk 0:01:58.6]} 24. exf5
{[%clk 0:01:47.7]} 24... f6 {[%clk 0:01:00.9]} 25. fxg6 {[%clk 0:01:41.2]} 25...
Rhh8 {[%clk 0:00:54.5]} 26. Rce1 {[%clk 0:01:36.7]} 26... Rce8 {[%clk
0:00:48.2]} 27. Bc1 {[%clk 0:01:16.1]} 27... Qg3 {[%clk 0:00:30.2]} 28. Qxg3
{[%clk 0:01:07.8]} 28... Nxg3 {[%clk 0:00:30.1]} 29. Rf3 {[%clk 0:01:06.1]}
29... Ne4 {[%clk 0:00:13.4]} 30. Nxe4 {[%clk 0:01:03.6]} 30... dxe4 {[%clk
0:00:14.3]} 31. Rxe4 {[%clk 0:01:03.5]} 31... fxg5 {[%clk 0:00:08]} 32. Rf7+
{[%clk 0:01:02.4]} 32... Kxg6 {[%clk 0:00:07.7]} 33. Rexe7 {[%clk 0:01:02.7]}
33... Rxe7 {[%clk 0:00:07.3]} 34. Rxe7 {[%clk 0:01:03.6]} 34... Nf6 {[%clk
0:00:07.2]} 35. Be4+ {[%clk 0:01:02.7]} 35... Nxe4 {[%clk 0:00:06.4]} 36. Rxe4
{[%clk 0:01:02.5]} 36... Rh3 {[%clk 0:00:05.4]} 37. Rg4 {[%clk 0:00:58.3]} 37...
Rd3 {[%clk 0:00:05.7]} 38. Rxg5+ {[%clk 0:00:57.1]} 38... Kf6 {[%clk 0:00:05.8]}
39. Kf2 {[%clk 0:00:46.5]} 39... Rd1 {[%clk 0:00:02.2]} 40. Be3 {[%clk
0:00:45.1]} 40... Ra1 {[%clk 0:00:02.6]} 41. Rg2 {[%clk 0:00:36.7]} 41... Rxa2+
{[%clk 0:00:02.7]} 42. Kf3 {[%clk 0:00:37.6]} 42... Ra3 {[%clk 0:00:02.5]} 43.
Ke4 {[%clk 0:00:33.9]} 43... Rb3 {[%clk 0:00:02.3]} 44. Bd2 {[%clk 0:00:34.2]}
44... Ke6 {[%clk 0:00:01.2]} 45. Rg7 {[%clk 0:00:33.6]} 45... b6 {[%clk
0:00:01.2]} 46. cxb6 {[%clk 0:00:33.4]} 46... a5 {[%clk 0:00:01.4]} 47. b7
{[%clk 0:00:31.9]} 1-0